Supplier Name,Service area Category,Trans date,Unique Invoice Reference,Expenditure Description,Posted Amount
PDP Companies,Management & Support Services,01/07/2020,9090850,Training,"1,491.75 "
K Lamb Associates Limited,Management & Support Services,03/07/2020,9090861,Training,"2,700.00 "
Synergos Business Solutions Ltd,Management & Support Services,30/06/2020,9090998,Training,138.84 
Synergos Business Solutions Ltd,Management & Support Services,30/06/2020,9090998,Training,725.00 
City and Guilds ILM,Management & Support Services,05/06/2020,9091061,Training,365.00 
R3 Safety & Rescue Limited,Management & Support Services,01/07/2020,9091065,Training,865.00 
R3 Safety & Rescue Limited,Management & Support Services,01/07/2020,9091066,Training,865.00 
"Callidus Software Inc, dba Litmos LLC",Management & Support Services,14/06/2020,9091067,Training,"3,500.00 "
Cipfa Business Ltd,Management & Support Services,12/06/2020,9091116,Training,195.00 
Nottingham City Council,Management & Support Services,16/06/2020,9091287,Training,"1,151.00 "
Nottingham City Council,Management & Support Services,14/07/2020,9091288,Training,"2,100.00 "
Legal Experience Training Limited,"Statutory Inspection, Certification & Enforcement",14/07/2020,9091290,Training,"1,087.45 "
Legal Experience Training Limited,"Statutory Inspection, Certification & Enforcement",14/07/2020,9091291,Training,"1,394.85 "
Legal Experience Training Limited,"Statutory Inspection, Certification & Enforcement",14/07/2020,9091291,Training,"1,819.85 "
Nottingham City Council,Management & Support Services,23/06/2020,9091294,Training,700.00 
Actorshop Limited,Management & Support Services,27/06/2020,9091361,Training,960.00 
Devon & Somerset Fire & Rescue Service,Management & Support Services,24/07/2020,9091378,Training,280.00 
Flat Fee Recruiter Limited,Management & Support Services,03/07/2020,9091139,Recruitment Advertising,458.00 
Flat Fee Recruiter Limited,Management & Support Services,07/07/2020,9091140,Recruitment Advertising,229.00 
Simplyhealth,Management & Support Services,15/06/2020,9091279,Employee Benefits Schemes,"4,244.11 "
Simplyhealth,Management & Support Services,15/05/2020,9091280,Employee Benefits Schemes,"4,248.01 "
Amptron Electrical Services,Operational Responses,30/06/2020,9091130,Buildings Repairs and Maintenance - Reactive,119.94 
Amptron Electrical Services,Operational Responses,30/06/2020,9091130,Buildings Repairs and Maintenance - Reactive,210.81 
Amptron Electrical Services,Operational Responses,30/06/2020,9091130,Buildings Repairs and Maintenance - Reactive,286.24 
Amptron Electrical Services,Operational Responses,30/06/2020,9091130,Buildings Repairs and Maintenance - Reactive,224.87 
Amptron Electrical Services,Operational Responses,30/06/2020,9091130,Buildings Repairs and Maintenance - Reactive,618.64 
Amptron Electrical Services,Operational Responses,30/06/2020,9091130,Buildings Repairs and Maintenance - Reactive,122.89 
Amptron Electrical Services,Operational Responses,30/06/2020,9091130,Buildings Repairs and Maintenance - Reactive,122.34 
Amptron Electrical Services,Operational Responses,30/06/2020,9091130,Buildings Repairs and Maintenance - Reactive,61.30 
Amptron Electrical Services,Operational Responses,30/06/2020,9091130,Buildings Repairs and Maintenance - Reactive,196.98 
Amptron Electrical Services,Operational Responses,30/06/2020,9091130,Buildings Repairs and Maintenance - Reactive,177.02 
Amptron Electrical Services,Operational Responses,30/06/2020,9091130,Buildings Repairs and Maintenance - Reactive,323.79 
Amptron Electrical Services,Management & Support Services,30/06/2020,9091130,Buildings Repairs and Maintenance - Reactive,186.93 
Amptron Electrical Services,Operational Responses,30/06/2020,9091131,Buildings Repairs and Maintenance - Reactive,619.14 
Amptron Electrical Services,Operational Responses,30/06/2020,9091131,Buildings Repairs and Maintenance - Reactive,198.00 
Amptron Electrical Services,Operational Responses,30/06/2020,9091133,Buildings Repairs and Maintenance - Reactive,"2,244.13 "
Amptron Electrical Services,Operational Responses,30/06/2020,9091135,Buildings Repairs and Maintenance - Reactive,"1,631.68 "
Amptron Electrical Services,Operational Responses,30/06/2020,9091135,Buildings Repairs and Maintenance - Reactive,634.86 
Amptron Electrical Services,Operational Responses,30/06/2020,9091135,Buildings Repairs and Maintenance - Reactive,559.33 
Amptron Electrical Services,Operational Responses,30/06/2020,9091135,Buildings Repairs and Maintenance - Reactive,"1,683.05 "
Amptron Electrical Services,Operational Responses,30/06/2020,9091135,Buildings Repairs and Maintenance - Reactive,81.04 
Amptron Electrical Services,Operational Responses,30/06/2020,9091135,Buildings Repairs and Maintenance - Reactive,753.54 
Amptron Electrical Services,Operational Responses,30/06/2020,9091135,Buildings Repairs and Maintenance - Reactive,"1,779.88 "
Amptron Electrical Services,Operational Responses,30/06/2020,9091135,Buildings Repairs and Maintenance - Reactive,128.77 
Amptron Electrical Services,Management & Support Services,24/07/2020,9091380,Buildings Repairs and Maintenance - Reactive,"1,340.83 "
Amptron Electrical Services,Operational Responses,30/06/2020,9091391,Buildings Repairs and Maintenance - Reactive,"1,107.59 "
Amptron Electrical Services,Operational Responses,30/06/2020,9091391,Buildings Repairs and Maintenance - Reactive,802.43 
Amptron Electrical Services,Operational Responses,30/06/2020,9091391,Buildings Repairs and Maintenance - Reactive,103.41 
Amptron Electrical Services,Operational Responses,30/06/2020,9091391,Buildings Repairs and Maintenance - Reactive,"1,835.49 "
Amptron Electrical Services,Operational Responses,30/06/2020,9091391,Buildings Repairs and Maintenance - Reactive,180.18 
Amptron Electrical Services,Operational Responses,30/06/2020,9091391,Buildings Repairs and Maintenance - Reactive,"3,136.95 "
Amptron Electrical Services,Operational Responses,30/06/2020,9091391,Buildings Repairs and Maintenance - Reactive,"3,135.00 "
Amptron Electrical Services,Management & Support Services,30/06/2020,9091391,Buildings Repairs and Maintenance - Reactive,"3,679.79 "
Amptron Electrical Services,Management & Support Services,30/06/2020,9091391,Buildings Repairs and Maintenance - Reactive,96.41 
Amptron Electrical Services,Operational Responses,16/06/2020,9090833,Building Maintenance - Planned,577.50 
BWT UK Limited,Operational Responses,30/04/2020,9090872,Building Maintenance - Planned,32.56 
BWT UK Limited,Operational Responses,30/04/2020,9090872,Building Maintenance - Planned,16.28 
BWT UK Limited,Operational Responses,30/04/2020,9090872,Building Maintenance - Planned,32.56 
BWT UK Limited,Operational Responses,30/04/2020,9090872,Building Maintenance - Planned,16.28 
BWT UK Limited,Operational Responses,30/04/2020,9090872,Building Maintenance - Planned,24.42 
BWT UK Limited,Operational Responses,30/04/2020,9090872,Building Maintenance - Planned,8.14 
BWT UK Limited,Operational Responses,30/04/2020,9090872,Building Maintenance - Planned,16.28 
BWT UK Limited,Operational Responses,30/04/2020,9090872,Building Maintenance - Planned,8.14 
BWT UK Limited,Operational Responses,30/04/2020,9090872,Building Maintenance - Planned,8.14 
BWT UK Limited,Operational Responses,30/04/2020,9090872,Building Maintenance - Planned,24.42 
BWT UK Limited,Operational Responses,30/04/2020,9090872,Building Maintenance - Planned,8.14 
BWT UK Limited,Operational Responses,30/04/2020,9090872,Building Maintenance - Planned,8.14 
BWT UK Limited,Operational Responses,30/04/2020,9090872,Building Maintenance - Planned,8.14 
BWT UK Limited,Operational Responses,30/04/2020,9090872,Building Maintenance - Planned,16.28 
BWT UK Limited,Operational Responses,30/04/2020,9090872,Building Maintenance - Planned,7.91 
BWT UK Limited,Operational Responses,30/04/2020,9090872,Building Maintenance - Planned,16.28 
BWT UK Limited,Operational Responses,30/04/2020,9090872,Building Maintenance - Planned,16.28 
BWT UK Limited,Operational Responses,30/04/2020,9090872,Building Maintenance - Planned,8.14 
BWT UK Limited,Operational Responses,30/04/2020,9090872,Building Maintenance - Planned,8.14 
BWT UK Limited,Operational Responses,30/04/2020,9090872,Building Maintenance - Planned,7.91 
BWT UK Limited,Operational Responses,30/04/2020,9090872,Building Maintenance - Planned,16.28 
BWT UK Limited,Operational Responses,30/04/2020,9090872,Building Maintenance - Planned,16.28 
BWT UK Limited,Operational Responses,30/04/2020,9090872,Building Maintenance - Planned,8.14 
BWT UK Limited,Operational Responses,30/04/2020,9090872,Building Maintenance - Planned,32.56 
BWT UK Limited,Management & Support Services,30/04/2020,9090872,Building Maintenance - Planned,24.42 
BWT UK Limited,Management & Support Services,30/04/2020,9090872,Building Maintenance - Planned,73.26 
GES (Leicester) Limited,Operational Responses,26/06/2020,9090907,Building Maintenance - Planned,50.00 
GES (Leicester) Limited,Operational Responses,26/06/2020,9090907,Building Maintenance - Planned,50.00 
GES (Leicester) Limited,Operational Responses,26/06/2020,9090907,Building Maintenance - Planned,50.00 
GES (Leicester) Limited,Operational Responses,26/06/2020,9090907,Building Maintenance - Planned,50.00 
GES (Leicester) Limited,Operational Responses,26/06/2020,9090907,Building Maintenance - Planned,50.00 
GES (Leicester) Limited,Operational Responses,26/06/2020,9090907,Building Maintenance - Planned,50.00 
GES (Leicester) Limited,Operational Responses,26/06/2020,9090907,Building Maintenance - Planned,50.00 
GES (Leicester) Limited,Operational Responses,26/06/2020,9090907,Building Maintenance - Planned,50.00 
GES (Leicester) Limited,Operational Responses,26/06/2020,9090907,Building Maintenance - Planned,50.00 
GES (Leicester) Limited,Operational Responses,26/06/2020,9090907,Building Maintenance - Planned,50.00 
GES (Leicester) Limited,Operational Responses,26/06/2020,9090907,Building Maintenance - Planned,50.00 
GES (Leicester) Limited,Operational Responses,26/06/2020,9090907,Building Maintenance - Planned,50.00 
GES (Leicester) Limited,Operational Responses,26/06/2020,9090907,Building Maintenance - Planned,50.00 
GES (Leicester) Limited,Operational Responses,26/06/2020,9090907,Building Maintenance - Planned,50.00 
GES (Leicester) Limited,Operational Responses,26/06/2020,9090907,Building Maintenance - Planned,50.00 
GES (Leicester) Limited,Operational Responses,26/06/2020,9090907,Building Maintenance - Planned,50.00 
GES (Leicester) Limited,Operational Responses,26/06/2020,9090907,Building Maintenance - Planned,50.00 
GES (Leicester) Limited,Operational Responses,26/06/2020,9090907,Building Maintenance - Planned,50.00 
GES (Leicester) Limited,Operational Responses,26/06/2020,9090907,Building Maintenance - Planned,50.00 
GES (Leicester) Limited,Operational Responses,26/06/2020,9090907,Building Maintenance - Planned,50.00 
GES (Leicester) Limited,Operational Responses,26/06/2020,9090907,Building Maintenance - Planned,50.00 
GES (Leicester) Limited,Operational Responses,26/06/2020,9090907,Building Maintenance - Planned,50.00 
GES (Leicester) Limited,Operational Responses,26/06/2020,9090907,Building Maintenance - Planned,50.00 
GES (Leicester) Limited,Management & Support Services,26/06/2020,9090907,Building Maintenance - Planned,50.00 
GES (Leicester) Limited,Management & Support Services,26/06/2020,9090907,Building Maintenance - Planned,50.00 
BWT UK Limited,Operational Responses,30/06/2020,9091093,Building Maintenance - Planned,32.56 
BWT UK Limited,Operational Responses,30/06/2020,9091093,Building Maintenance - Planned,16.28 
BWT UK Limited,Operational Responses,30/06/2020,9091093,Building Maintenance - Planned,32.56 
BWT UK Limited,Operational Responses,30/06/2020,9091093,Building Maintenance - Planned,16.28 
BWT UK Limited,Operational Responses,30/06/2020,9091093,Building Maintenance - Planned,24.42 
BWT UK Limited,Operational Responses,30/06/2020,9091093,Building Maintenance - Planned,8.14 
BWT UK Limited,Operational Responses,30/06/2020,9091093,Building Maintenance - Planned,16.28 
BWT UK Limited,Operational Responses,30/06/2020,9091093,Building Maintenance - Planned,8.14 
BWT UK Limited,Operational Responses,30/06/2020,9091093,Building Maintenance - Planned,8.14 
BWT UK Limited,Operational Responses,30/06/2020,9091093,Building Maintenance - Planned,24.42 
BWT UK Limited,Operational Responses,30/06/2020,9091093,Building Maintenance - Planned,8.14 
BWT UK Limited,Operational Responses,30/06/2020,9091093,Building Maintenance - Planned,8.14 
BWT UK Limited,Operational Responses,30/06/2020,9091093,Building Maintenance - Planned,8.14 
BWT UK Limited,Operational Responses,30/06/2020,9091093,Building Maintenance - Planned,16.28 
BWT UK Limited,Operational Responses,30/06/2020,9091093,Building Maintenance - Planned,7.91 
BWT UK Limited,Operational Responses,30/06/2020,9091093,Building Maintenance - Planned,16.28 
BWT UK Limited,Operational Responses,30/06/2020,9091093,Building Maintenance - Planned,16.28 
BWT UK Limited,Operational Responses,30/06/2020,9091093,Building Maintenance - Planned,8.14 
BWT UK Limited,Operational Responses,30/06/2020,9091093,Building Maintenance - Planned,8.14 
BWT UK Limited,Operational Responses,30/06/2020,9091093,Building Maintenance - Planned,7.91 
BWT UK Limited,Operational Responses,30/06/2020,9091093,Building Maintenance - Planned,16.28 
BWT UK Limited,Operational Responses,30/06/2020,9091093,Building Maintenance - Planned,16.28 
BWT UK Limited,Operational Responses,30/06/2020,9091093,Building Maintenance - Planned,8.14 
BWT UK Limited,Operational Responses,30/06/2020,9091093,Building Maintenance - Planned,32.56 
BWT UK Limited,Management & Support Services,30/06/2020,9091093,Building Maintenance - Planned,24.42 
BWT UK Limited,Management & Support Services,30/06/2020,9091093,Building Maintenance - Planned,73.26 
Amptron Electrical Services,Management & Support Services,31/05/2020,9091198,Building Maintenance - Planned,"2,873.60 "
Amptron Electrical Services,Management & Support Services,31/05/2020,9091198,Building Maintenance - Planned,"5,000.04 "
East Midlands Ambulance Service NHS Trust,Operational Responses,14/05/2020,9091273,Building Maintenance - Planned,"1,172.85 "
Amptron Electrical Services,Operational Responses,30/06/2020,9091375,Building Maintenance - Planned,978.00 
Amptron Electrical Services,Operational Responses,30/06/2020,9091375,Building Maintenance - Planned,"1,318.37 "
Amptron Electrical Services,Operational Responses,30/06/2020,9091375,Building Maintenance - Planned,244.99 
Amptron Electrical Services,Operational Responses,30/06/2020,9091375,Building Maintenance - Planned,711.20 
Amptron Electrical Services,Operational Responses,30/06/2020,9091375,Building Maintenance - Planned,495.75 
Amptron Electrical Services,Operational Responses,30/06/2020,9091375,Building Maintenance - Planned,536.47 
Amptron Electrical Services,Operational Responses,30/06/2020,9091375,Building Maintenance - Planned,182.18 
Amptron Electrical Services,Operational Responses,30/06/2020,9091375,Building Maintenance - Planned,217.37 
Amptron Electrical Services,Operational Responses,30/06/2020,9091375,Building Maintenance - Planned,942.80 
Amptron Electrical Services,Operational Responses,30/06/2020,9091375,Building Maintenance - Planned,280.18 
Amptron Electrical Services,Operational Responses,30/06/2020,9091375,Building Maintenance - Planned,217.37 
Amptron Electrical Services,Operational Responses,30/06/2020,9091375,Building Maintenance - Planned,182.18 
Amptron Electrical Services,Operational Responses,30/06/2020,9091375,Building Maintenance - Planned,"1,032.79 "
Amptron Electrical Services,Operational Responses,30/06/2020,9091375,Building Maintenance - Planned,182.18 
Amptron Electrical Services,Operational Responses,30/06/2020,9091375,Building Maintenance - Planned,311.99 
Amptron Electrical Services,Operational Responses,30/06/2020,9091375,Building Maintenance - Planned,440.53 
Amptron Electrical Services,Operational Responses,30/06/2020,9091375,Building Maintenance - Planned,217.37 
Amptron Electrical Services,Operational Responses,30/06/2020,9091375,Building Maintenance - Planned,252.53 
Amptron Electrical Services,Operational Responses,30/06/2020,9091375,Building Maintenance - Planned,11.58 
Amptron Electrical Services,Operational Responses,30/06/2020,9091375,Building Maintenance - Planned,440.53 
Amptron Electrical Services,Operational Responses,30/06/2020,9091375,Building Maintenance - Planned,"1,193.23 "
Amptron Electrical Services,Operational Responses,30/06/2020,9091375,Building Maintenance - Planned,342.56 
Amptron Electrical Services,Operational Responses,30/06/2020,9091375,Building Maintenance - Planned,"2,118.71 "
Amptron Electrical Services,Management & Support Services,30/06/2020,9091375,Building Maintenance - Planned,"1,062.19 "
Amptron Electrical Services,Management & Support Services,30/06/2020,9091375,Building Maintenance - Planned,"1,739.52 "
Amptron Electrical Services,Operational Responses,30/06/2020,9091387,Building Maintenance - Planned,462.15 
Amptron Electrical Services,Operational Responses,30/06/2020,9091387,Building Maintenance - Planned,315.26 
Amptron Electrical Services,Operational Responses,30/06/2020,9091387,Building Maintenance - Planned,116.10 
Amptron Electrical Services,Operational Responses,30/06/2020,9091387,Building Maintenance - Planned,413.03 
Amptron Electrical Services,Operational Responses,30/06/2020,9091387,Building Maintenance - Planned,112.09 
Amptron Electrical Services,Operational Responses,30/06/2020,9091387,Building Maintenance - Planned,184.38 
Amptron Electrical Services,Operational Responses,30/06/2020,9091387,Building Maintenance - Planned,152.52 
Amptron Electrical Services,Operational Responses,30/06/2020,9091387,Building Maintenance - Planned,144.71 
Amptron Electrical Services,Operational Responses,30/06/2020,9091387,Building Maintenance - Planned,149.48 
Amptron Electrical Services,Operational Responses,30/06/2020,9091387,Building Maintenance - Planned,700.18 
Amptron Electrical Services,Operational Responses,30/06/2020,9091387,Building Maintenance - Planned,177.28 
Amptron Electrical Services,Operational Responses,30/06/2020,9091387,Building Maintenance - Planned,464.04 
Amptron Electrical Services,Operational Responses,30/06/2020,9091387,Building Maintenance - Planned,252.46 
Amptron Electrical Services,Operational Responses,30/06/2020,9091387,Building Maintenance - Planned,67.95 
Amptron Electrical Services,Operational Responses,30/06/2020,9091387,Building Maintenance - Planned,302.25 
Amptron Electrical Services,Operational Responses,30/06/2020,9091387,Building Maintenance - Planned,115.08 
Amptron Electrical Services,Management & Support Services,30/06/2020,9091387,Building Maintenance - Planned,206.10 
EDF Energy,Operational Responses,01/06/2020,9090780,Electricity,"2,311.47 "
EDF Energy,Management & Support Services,01/06/2020,9090782,Electricity,"2,189.58 "
EDF Energy,Operational Responses,01/06/2020,9090783,Electricity,"1,453.30 "
EDF Energy,Operational Responses,01/06/2020,9090784,Electricity,"1,288.75 "
EDF Energy,Operational Responses,01/06/2020,9090785,Electricity,586.59 
EDF Energy,Operational Responses,01/06/2020,9090786,Electricity,641.65 
EDF Energy,Operational Responses,12/05/2020,9090788,Electricity,"2,514.81 "
EDF Energy,Management & Support Services,12/05/2020,9090789,Electricity,"2,342.01 "
EDF Energy,Operational Responses,12/05/2020,9090790,Electricity,"1,476.24 "
EDF Energy,Operational Responses,12/05/2020,9090791,Electricity,"1,270.83 "
EDF Energy,Operational Responses,13/05/2020,9090792,Electricity,725.43 
EDF Energy,Operational Responses,12/05/2020,9090793,Electricity,605.52 
EDF Energy,Operational Responses,12/05/2020,9090794,Electricity,696.80 
EDF Energy,Management & Support Services,14/05/2020,9090795,Electricity,"1,222.32 "
EDF Energy,Management & Support Services,01/06/2020,9090796,Electricity,"1,155.25 "
Siemens Energy Services Ltd,Operational Responses,03/07/2020,9091255,Electricity,380.96 
East Midlands Ambulance Service NHS Trust,Operational Responses,14/05/2020,9091273,Electricity,898.71 
British Gas Business,Operational Responses,07/07/2020,9091313,Electricity,130.93 
British Gas Business,Operational Responses,07/07/2020,9091313,Electricity,"1,027.00 "
British Gas Business,Operational Responses,07/07/2020,9091313,Electricity,180.80 
British Gas Business,Operational Responses,07/07/2020,9091313,Electricity,892.26 
British Gas Business,Operational Responses,07/07/2020,9091313,Electricity,380.87 
British Gas Business,Operational Responses,07/07/2020,9091313,Electricity,214.77 
British Gas Business,Operational Responses,07/07/2020,9091313,Electricity,811.11 
British Gas Business,Operational Responses,07/07/2020,9091313,Electricity,309.85 
British Gas Business,Operational Responses,07/07/2020,9091313,Electricity,152.98 
British Gas Business,Operational Responses,07/07/2020,9091313,Electricity,197.67 
British Gas Business,Operational Responses,07/07/2020,9091313,Electricity,210.11 
British Gas Business,Operational Responses,07/07/2020,9091313,Electricity,205.05 
British Gas Business,Operational Responses,07/07/2020,9091313,Electricity,205.67 
British Gas Business,Operational Responses,07/07/2020,9091313,Electricity,982.39 
British Gas Business,Operational Responses,07/07/2020,9091313,Electricity,668.57 
British Gas Business,Operational Responses,07/07/2020,9091313,Electricity,349.43 
British Gas Business,Operational Responses,07/07/2020,9091313,Electricity,441.80 
British Gas Business,Operational Responses,07/07/2020,9091313,Electricity,479.96 
British Gas Business,Operational Responses,07/07/2020,9091313,Electricity,867.54 
British Gas Business,Operational Responses,07/07/2020,9091313,Electricity,179.08 
British Gas Business,Management & Support Services,07/07/2020,9091313,Electricity,51.49 
British Gas Business,Prevention & Education,07/07/2020,9091313,Electricity,269.60 
EDF Energy,Operational Responses,01/07/2020,9091351,Electricity,"2,581.68 "
EDF Energy,Management & Support Services,01/07/2020,9091352,Electricity,"2,374.84 "
EDF Energy,Operational Responses,01/07/2020,9091353,Electricity,"1,292.90 "
EDF Energy,Operational Responses,01/07/2020,9091354,Electricity,"1,288.73 "
EDF Energy,Operational Responses,01/07/2020,9091355,Electricity,587.87 
EDF Energy,Operational Responses,01/07/2020,9091356,Electricity,698.08 
EDF Energy,Management & Support Services,01/07/2020,9091357,Electricity,"1,214.53 "
British Gas Business,Operational Responses,08/06/2020,9091365,Electricity,22.61 
British Gas Business,Operational Responses,08/06/2020,9091365,Electricity,925.73 
British Gas Business,Operational Responses,08/06/2020,9091365,Electricity,938.19 
British Gas Business,Operational Responses,08/06/2020,9091365,Electricity,357.56 
British Gas Business,Operational Responses,08/06/2020,9091365,Electricity,191.41 
British Gas Business,Operational Responses,08/06/2020,9091365,Electricity,811.38 
British Gas Business,Operational Responses,08/06/2020,9091365,Electricity,316.09 
British Gas Business,Operational Responses,08/06/2020,9091365,Electricity,-191.80 
British Gas Business,Operational Responses,08/06/2020,9091365,Electricity,73.59 
British Gas Business,Operational Responses,08/06/2020,9091365,Electricity,191.80 
British Gas Business,Operational Responses,08/06/2020,9091365,Electricity,209.04 
British Gas Business,Operational Responses,08/06/2020,9091365,Electricity,18.51 
British Gas Business,Operational Responses,08/06/2020,9091365,Electricity,204.67 
British Gas Business,Operational Responses,08/06/2020,9091365,Electricity,218.42 
British Gas Business,Operational Responses,08/06/2020,9091365,Electricity,"1,056.94 "
British Gas Business,Operational Responses,08/06/2020,9091365,Electricity,568.34 
British Gas Business,Operational Responses,08/06/2020,9091365,Electricity,334.49 
British Gas Business,Operational Responses,08/06/2020,9091365,Electricity,-868.40 
British Gas Business,Operational Responses,08/06/2020,9091365,Electricity,470.82 
British Gas Business,Operational Responses,08/06/2020,9091365,Electricity,947.46 
British Gas Business,Operational Responses,08/06/2020,9091365,Electricity,330.46 
British Gas Business,Operational Responses,08/06/2020,9091365,Electricity,923.08 
British Gas Business,Operational Responses,08/06/2020,9091365,Electricity,170.73 
British Gas Business,Management & Support Services,08/06/2020,9091365,Electricity,52.04 
British Gas Business,Prevention & Education,08/06/2020,9091365,Electricity,270.28 
British Gas Business,Operational Responses,08/06/2020,9091365,Electricity,134.86 
EDF Energy,Operational Responses,13/05/2020,9090781,Electricity,-768.75 
Corona Energy,Prevention & Education,09/06/2020,9090800,Gas,216.53 
Corona Energy,Operational Responses,09/06/2020,9090804,Gas,376.15 
Corona Energy,Operational Responses,09/06/2020,9090806,Gas,431.29 
Corona Energy,Management & Support Services,09/06/2020,9090810,Gas,322.17 
Corona Energy,Operational Responses,09/06/2020,9090813,Gas,472.50 
Corona Energy,Management & Support Services,09/06/2020,9090814,Gas,"1,329.24 "
Corona Energy,Operational Responses,09/06/2020,9090816,Gas,"1,245.62 "
Corona Energy,Operational Responses,09/06/2020,9090817,Gas,646.37 
Corona Energy,Operational Responses,09/06/2020,9090818,Gas,634.64 
Corona Energy,Operational Responses,09/06/2020,9090819,Gas,436.18 
Corona Energy,Operational Responses,09/06/2020,9090821,Gas,256.86 
Corona Energy,Operational Responses,09/06/2020,9090822,Gas,297.26 
Corona Energy,Operational Responses,09/06/2020,9090824,Gas,615.70 
Corona Energy,Operational Responses,09/06/2020,9090825,Gas,390.16 
East Midlands Ambulance Service NHS Trust,Operational Responses,14/05/2020,9091273,Gas,637.80 
Enviroenergy Lrd,Operational Responses,30/06/2020,9091311,Gas,517.02 
Corona Energy,Operational Responses,08/07/2020,9091328,Gas,266.28 
Corona Energy,Operational Responses,08/07/2020,9091330,Gas,373.71 
Corona Energy,Operational Responses,08/07/2020,9091331,Gas,343.24 
Corona Energy,Operational Responses,08/07/2020,9091332,Gas,603.61 
Corona Energy,Operational Responses,08/07/2020,9091333,Gas,221.54 
Corona Energy,Operational Responses,08/07/2020,9091335,Gas,220.56 
Corona Energy,Operational Responses,08/07/2020,9091336,Gas,612.76 
Corona Energy,Operational Responses,08/07/2020,9091338,Gas,323.24 
Corona Energy,Management & Support Services,08/07/2020,9091342,Gas,284.23 
Corona Energy,Operational Responses,08/07/2020,9091345,Gas,380.76 
Corona Energy,Management & Support Services,08/07/2020,9091346,Gas,790.10 
Corona Energy,Operational Responses,08/07/2020,9091347,Gas,656.97 
Corona Energy,Operational Responses,08/07/2020,9091349,Gas,566.63 
Corona Energy,Operational Responses,08/07/2020,9091350,Gas,507.00 
Water Plus Limited (Payments Centre),Operational Responses,03/06/2020,9090826,Water Rates,604.17 
Castle Water Limited,Operational Responses,19/05/2020,9091253,Water Rates,89.07 
Castle Water Limited,Operational Responses,02/07/2020,9091266,Water Rates,169.75 
Castle Water Limited,Management & Support Services,02/07/2020,9091268,Water Rates,453.52 
East Midlands Ambulance Service NHS Trust,Operational Responses,14/05/2020,9091273,Water Rates,339.12 
Castle Water Limited,Operational Responses,14/07/2020,9091308,Water Rates,67.48 
Castle Water Limited,Management & Support Services,19/07/2020,9091314,Water Rates,337.86 
Water Plus Limited (Payments Centre),Operational Responses,03/06/2020,9090826,Sewerage and Environmental,0.88 
Water Plus Limited (Payments Centre),Operational Responses,03/06/2020,9090826,Sewerage and Environmental,40.00 
Water Plus Limited (Payments Centre),Operational Responses,03/06/2020,9090826,Sewerage and Environmental,418.28 
Castle Water Limited,Operational Responses,19/05/2020,9091253,Sewerage and Environmental,353.54 
Castle Water Limited,Operational Responses,02/07/2020,9091266,Sewerage and Environmental,109.17 
Castle Water Limited,Management & Support Services,02/07/2020,9091268,Sewerage and Environmental,292.20 
Castle Water Limited,Operational Responses,14/07/2020,9091308,Sewerage and Environmental,339.61 
Water Plus Limited (Payments Centre),Operational Responses,07/07/2020,9091312,Sewerage and Environmental,482.66 
Castle Water Limited,Management & Support Services,19/07/2020,9091314,Sewerage and Environmental,217.59 
Castle Water Limited,Operational Responses,11/07/2020,9091366,Sewerage and Environmental,417.93 
East Midlands Ambulance Service NHS Trust,Operational Responses,14/05/2020,9091273,Business Rates,"1,821.19 "
Veolia ES UK Limited,Management & Support Services,30/04/2020,9090842,Refuse / Trade Waste Collection,"1,539.59 "
Veolia ES UK Limited,Management & Support Services,31/05/2020,9090844,Refuse / Trade Waste Collection,"1,511.99 "
Veolia ES UK Limited,Management & Support Services,31/01/2020,9090845,Refuse / Trade Waste Collection,"1,569.41 "
Veolia ES UK Limited,Management & Support Services,31/03/2020,9090846,Refuse / Trade Waste Collection,"1,569.58 "
Veolia ES UK Limited,Management & Support Services,30/09/2019,9090847,Refuse / Trade Waste Collection,"1,406.96 "
Shred IT Limited,Operational Responses,30/06/2020,9090908,Refuse / Trade Waste Collection,40.00 
Shred IT Limited,Operational Responses,30/06/2020,9090908,Refuse / Trade Waste Collection,40.00 
Shred IT Limited,Operational Responses,30/06/2020,9090908,Refuse / Trade Waste Collection,40.00 
Shred IT Limited,Operational Responses,30/06/2020,9090908,Refuse / Trade Waste Collection,40.00 
Shred IT Limited,Operational Responses,30/06/2020,9090908,Refuse / Trade Waste Collection,40.00 
Shred IT Limited,Operational Responses,30/06/2020,9090908,Refuse / Trade Waste Collection,40.00 
Shred IT Limited,Operational Responses,30/06/2020,9090908,Refuse / Trade Waste Collection,40.00 
Shred IT Limited,Operational Responses,30/06/2020,9090908,Refuse / Trade Waste Collection,40.00 
Shred IT Limited,Operational Responses,30/06/2020,9090908,Refuse / Trade Waste Collection,40.00 
Shred IT Limited,Management & Support Services,30/06/2020,9090908,Refuse / Trade Waste Collection,40.00 
Shred IT Limited,Management & Support Services,30/06/2020,9090908,Refuse / Trade Waste Collection,115.00 
East Midlands Ambulance Service NHS Trust,Operational Responses,14/05/2020,9091273,Refuse / Trade Waste Collection,102.04 
Veolia ES UK Limited,Management & Support Services,30/06/2020,9091285,Refuse / Trade Waste Collection,"1,633.63 "
NCC Sundry Debtors,Operational Responses,01/07/2020,9090875,Grounds Maintenance,37.42 
NCC Sundry Debtors,Operational Responses,01/07/2020,9090875,Grounds Maintenance,64.10 
NCC Sundry Debtors,Operational Responses,01/07/2020,9090875,Grounds Maintenance,34.40 
NCC Sundry Debtors,Operational Responses,01/07/2020,9090875,Grounds Maintenance,172.01 
NCC Sundry Debtors,Operational Responses,01/07/2020,9090875,Grounds Maintenance,36.38 
NCC Sundry Debtors,Operational Responses,01/07/2020,9090875,Grounds Maintenance,3.14 
NCC Sundry Debtors,Operational Responses,01/07/2020,9090875,Grounds Maintenance,33.97 
NCC Sundry Debtors,Operational Responses,01/07/2020,9090875,Grounds Maintenance,39.93 
NCC Sundry Debtors,Operational Responses,01/07/2020,9090875,Grounds Maintenance,37.07 
NCC Sundry Debtors,Operational Responses,01/07/2020,9090875,Grounds Maintenance,24.86 
NCC Sundry Debtors,Operational Responses,01/07/2020,9090875,Grounds Maintenance,25.85 
NCC Sundry Debtors,Operational Responses,01/07/2020,9090875,Grounds Maintenance,24.56 
NCC Sundry Debtors,Operational Responses,01/07/2020,9090875,Grounds Maintenance,14.38 
NCC Sundry Debtors,Operational Responses,01/07/2020,9090875,Grounds Maintenance,35.69 
NCC Sundry Debtors,Operational Responses,01/07/2020,9090875,Grounds Maintenance,60.55 
NCC Sundry Debtors,Operational Responses,01/07/2020,9090875,Grounds Maintenance,102.65 
NCC Sundry Debtors,Operational Responses,01/07/2020,9090875,Grounds Maintenance,204.19 
NCC Sundry Debtors,Operational Responses,01/07/2020,9090875,Grounds Maintenance,76.06 
NCC Sundry Debtors,Operational Responses,01/07/2020,9090875,Grounds Maintenance,25.60 
NCC Sundry Debtors,Operational Responses,01/07/2020,9090875,Grounds Maintenance,10.68 
NCC Sundry Debtors,Operational Responses,01/07/2020,9090875,Grounds Maintenance,9.65 
NCC Sundry Debtors,Operational Responses,01/07/2020,9090875,Grounds Maintenance,125.54 
NCC Sundry Debtors,Operational Responses,01/07/2020,9090875,Grounds Maintenance,74.83 
NCC Sundry Debtors,Management & Support Services,01/07/2020,9090875,Grounds Maintenance,148.12 
NCC Sundry Debtors,Management & Support Services,01/07/2020,9090875,Grounds Maintenance,915.55 
NCC Sundry Debtors,Operational Responses,01/03/2020,9091296,Grounds Maintenance,34.97 
NCC Sundry Debtors,Operational Responses,01/03/2020,9091296,Grounds Maintenance,59.91 
NCC Sundry Debtors,Operational Responses,01/03/2020,9091296,Grounds Maintenance,32.15 
NCC Sundry Debtors,Operational Responses,01/03/2020,9091296,Grounds Maintenance,160.75 
NCC Sundry Debtors,Operational Responses,01/03/2020,9091296,Grounds Maintenance,34.00 
NCC Sundry Debtors,Operational Responses,01/03/2020,9091296,Grounds Maintenance,2.94 
NCC Sundry Debtors,Operational Responses,01/03/2020,9091296,Grounds Maintenance,31.75 
NCC Sundry Debtors,Operational Responses,01/03/2020,9091296,Grounds Maintenance,37.32 
NCC Sundry Debtors,Operational Responses,01/03/2020,9091296,Grounds Maintenance,34.65 
NCC Sundry Debtors,Operational Responses,01/03/2020,9091296,Grounds Maintenance,23.24 
NCC Sundry Debtors,Operational Responses,01/03/2020,9091296,Grounds Maintenance,24.16 
NCC Sundry Debtors,Operational Responses,01/03/2020,9091296,Grounds Maintenance,22.96 
NCC Sundry Debtors,Operational Responses,01/03/2020,9091296,Grounds Maintenance,13.44 
NCC Sundry Debtors,Operational Responses,01/03/2020,9091296,Grounds Maintenance,33.36 
NCC Sundry Debtors,Operational Responses,01/03/2020,9091296,Grounds Maintenance,56.58 
NCC Sundry Debtors,Operational Responses,01/03/2020,9091296,Grounds Maintenance,95.93 
NCC Sundry Debtors,Operational Responses,01/03/2020,9091296,Grounds Maintenance,190.83 
NCC Sundry Debtors,Operational Responses,01/03/2020,9091296,Grounds Maintenance,71.09 
NCC Sundry Debtors,Operational Responses,01/03/2020,9091296,Grounds Maintenance,23.93 
NCC Sundry Debtors,Operational Responses,01/03/2020,9091296,Grounds Maintenance,9.98 
NCC Sundry Debtors,Operational Responses,01/03/2020,9091296,Grounds Maintenance,9.02 
NCC Sundry Debtors,Operational Responses,01/03/2020,9091296,Grounds Maintenance,117.33 
NCC Sundry Debtors,Operational Responses,01/03/2020,9091296,Grounds Maintenance,69.94 
NCC Sundry Debtors,Management & Support Services,01/03/2020,9091296,Grounds Maintenance,138.43 
NCC Sundry Debtors,Management & Support Services,01/03/2020,9091296,Grounds Maintenance,855.66 
Irongate Group Ltd,Operational Responses,27/04/2020,9090968,Cleaning Materials,219.17 
Irongate Group Ltd,Operational Responses,21/05/2020,9091086,Cleaning Materials,208.57 
Irongate Group Ltd,Operational Responses,13/07/2020,9091200,Cleaning Materials,222.37 
Irongate Group Ltd,Operational Responses,08/07/2020,9091229,Cleaning Materials,223.56 
Irongate Group Ltd,Management & Support Services,08/07/2020,9091250,Cleaning Materials,435.40 
NCC Sundry Debtors,Operational Responses,01/07/2020,9090871,Contract Cleaning,14.57 
NCC Sundry Debtors,Operational Responses,01/07/2020,9090871,Contract Cleaning,10.93 
NCC Sundry Debtors,Operational Responses,01/07/2020,9090871,Contract Cleaning,13.66 
NCC Sundry Debtors,Operational Responses,01/07/2020,9090871,Contract Cleaning,14.57 
NCC Sundry Debtors,Operational Responses,01/07/2020,9090871,Contract Cleaning,10.93 
NCC Sundry Debtors,Operational Responses,01/07/2020,9090871,Contract Cleaning,10.93 
NCC Sundry Debtors,Operational Responses,01/07/2020,9090871,Contract Cleaning,14.57 
NCC Sundry Debtors,Operational Responses,01/07/2020,9090871,Contract Cleaning,10.93 
NCC Sundry Debtors,Operational Responses,01/07/2020,9090871,Contract Cleaning,10.93 
NCC Sundry Debtors,Operational Responses,01/07/2020,9090871,Contract Cleaning,10.93 
NCC Sundry Debtors,Operational Responses,01/07/2020,9090871,Contract Cleaning,10.93 
NCC Sundry Debtors,Operational Responses,01/07/2020,9090871,Contract Cleaning,10.93 
NCC Sundry Debtors,Operational Responses,01/07/2020,9090871,Contract Cleaning,10.93 
NCC Sundry Debtors,Operational Responses,01/07/2020,9090871,Contract Cleaning,14.57 
NCC Sundry Debtors,Operational Responses,01/07/2020,9090871,Contract Cleaning,10.93 
NCC Sundry Debtors,Operational Responses,01/07/2020,9090871,Contract Cleaning,14.57 
NCC Sundry Debtors,Operational Responses,01/07/2020,9090871,Contract Cleaning,14.57 
NCC Sundry Debtors,Operational Responses,01/07/2020,9090871,Contract Cleaning,10.93 
NCC Sundry Debtors,Operational Responses,01/07/2020,9090871,Contract Cleaning,10.93 
NCC Sundry Debtors,Operational Responses,01/07/2020,9090871,Contract Cleaning,14.57 
NCC Sundry Debtors,Operational Responses,01/07/2020,9090871,Contract Cleaning,14.57 
NCC Sundry Debtors,Operational Responses,01/07/2020,9090871,Contract Cleaning,10.93 
NCC Sundry Debtors,Operational Responses,01/07/2020,9090871,Contract Cleaning,14.57 
NCC Sundry Debtors,Management & Support Services,01/07/2020,9090871,Contract Cleaning,32.78 
NCC Sundry Debtors,Management & Support Services,01/07/2020,9090871,Contract Cleaning,130.40 
NCC Sundry Debtors,Operational Responses,15/06/2020,9090878,Contract Cleaning,558.06 
NCC Sundry Debtors,Operational Responses,01/03/2020,9090937,Contract Cleaning,291.67 
NCC Sundry Debtors,Operational Responses,01/07/2020,9090962,Contract Cleaning,"1,736.93 "
NCC Sundry Debtors,Operational Responses,01/07/2020,9090962,Contract Cleaning,124.08 
NCC Sundry Debtors,Operational Responses,01/07/2020,9090962,Contract Cleaning,"1,963.88 "
NCC Sundry Debtors,Operational Responses,01/07/2020,9090962,Contract Cleaning,775.22 
NCC Sundry Debtors,Operational Responses,01/07/2020,9090962,Contract Cleaning,495.98 
NCC Sundry Debtors,Operational Responses,01/07/2020,9090962,Contract Cleaning,154.96 
NCC Sundry Debtors,Operational Responses,01/07/2020,9090962,Contract Cleaning,930.26 
NCC Sundry Debtors,Operational Responses,01/07/2020,9090962,Contract Cleaning,310.01 
NCC Sundry Debtors,Operational Responses,01/07/2020,9090962,Contract Cleaning,248.02 
NCC Sundry Debtors,Operational Responses,01/07/2020,9090962,Contract Cleaning,"1,116.31 "
NCC Sundry Debtors,Operational Responses,01/07/2020,9090962,Contract Cleaning,185.93 
NCC Sundry Debtors,Operational Responses,01/07/2020,9090962,Contract Cleaning,279.04 
NCC Sundry Debtors,Operational Responses,01/07/2020,9090962,Contract Cleaning,279.04 
NCC Sundry Debtors,Operational Responses,01/07/2020,9090962,Contract Cleaning,775.22 
NCC Sundry Debtors,Operational Responses,01/07/2020,9090962,Contract Cleaning,186.12 
NCC Sundry Debtors,Operational Responses,01/07/2020,9090962,Contract Cleaning,"1,116.31 "
NCC Sundry Debtors,Operational Responses,01/07/2020,9090962,Contract Cleaning,"1,085.30 "
NCC Sundry Debtors,Operational Responses,01/07/2020,9090962,Contract Cleaning,465.01 
NCC Sundry Debtors,Operational Responses,01/07/2020,9090962,Contract Cleaning,309.96 
NCC Sundry Debtors,Operational Responses,01/07/2020,9090962,Contract Cleaning,697.69 
NCC Sundry Debtors,Operational Responses,01/07/2020,9090962,Contract Cleaning,"1,705.92 "
NCC Sundry Debtors,Operational Responses,01/07/2020,9090962,Contract Cleaning,185.98 
NCC Sundry Debtors,Operational Responses,01/07/2020,9090962,Contract Cleaning,"3,591.77 "
NCC Sundry Debtors,Management & Support Services,01/07/2020,9090962,Contract Cleaning,"1,674.91 "
NCC Sundry Debtors,Management & Support Services,01/07/2020,9090962,Contract Cleaning,"3,538.58 "
NCC Sundry Debtors,Operational Responses,01/03/2020,9091289,Contract Cleaning,"1,623.30 "
NCC Sundry Debtors,Operational Responses,01/03/2020,9091289,Contract Cleaning,115.96 
NCC Sundry Debtors,Operational Responses,01/03/2020,9091289,Contract Cleaning,"1,835.40 "
NCC Sundry Debtors,Operational Responses,01/03/2020,9091289,Contract Cleaning,724.50 
NCC Sundry Debtors,Operational Responses,01/03/2020,9091289,Contract Cleaning,463.54 
NCC Sundry Debtors,Operational Responses,01/03/2020,9091289,Contract Cleaning,144.82 
NCC Sundry Debtors,Operational Responses,01/03/2020,9091289,Contract Cleaning,869.40 
NCC Sundry Debtors,Operational Responses,01/03/2020,9091289,Contract Cleaning,289.73 
NCC Sundry Debtors,Operational Responses,01/03/2020,9091289,Contract Cleaning,231.79 
NCC Sundry Debtors,Operational Responses,01/03/2020,9091289,Contract Cleaning,"1,043.28 "
NCC Sundry Debtors,Operational Responses,01/03/2020,9091289,Contract Cleaning,173.77 
NCC Sundry Debtors,Operational Responses,01/03/2020,9091289,Contract Cleaning,260.78 
NCC Sundry Debtors,Operational Responses,01/03/2020,9091289,Contract Cleaning,260.78 
NCC Sundry Debtors,Operational Responses,01/03/2020,9091289,Contract Cleaning,724.50 
NCC Sundry Debtors,Operational Responses,01/03/2020,9091289,Contract Cleaning,173.94 
NCC Sundry Debtors,Operational Responses,01/03/2020,9091289,Contract Cleaning,"1,043.28 "
NCC Sundry Debtors,Operational Responses,01/03/2020,9091289,Contract Cleaning,"1,014.30 "
NCC Sundry Debtors,Operational Responses,01/03/2020,9091289,Contract Cleaning,434.59 
NCC Sundry Debtors,Operational Responses,01/03/2020,9091289,Contract Cleaning,289.68 
NCC Sundry Debtors,Operational Responses,01/03/2020,9091289,Contract Cleaning,652.05 
NCC Sundry Debtors,Operational Responses,01/03/2020,9091289,Contract Cleaning,"1,594.32 "
NCC Sundry Debtors,Operational Responses,01/03/2020,9091289,Contract Cleaning,173.81 
NCC Sundry Debtors,Operational Responses,01/03/2020,9091289,Contract Cleaning,"3,067.05 "
NCC Sundry Debtors,Management & Support Services,01/03/2020,9091289,Contract Cleaning,"1,565.34 "
NCC Sundry Debtors,Management & Support Services,01/03/2020,9091289,Contract Cleaning,"3,307.08 "
NCC Sundry Debtors,Operational Responses,01/03/2020,9091395,Contract Cleaning,14.15 
NCC Sundry Debtors,Operational Responses,01/03/2020,9091395,Contract Cleaning,10.61 
NCC Sundry Debtors,Operational Responses,01/03/2020,9091395,Contract Cleaning,13.26 
NCC Sundry Debtors,Operational Responses,01/03/2020,9091395,Contract Cleaning,14.15 
NCC Sundry Debtors,Operational Responses,01/03/2020,9091395,Contract Cleaning,10.61 
NCC Sundry Debtors,Operational Responses,01/03/2020,9091395,Contract Cleaning,10.61 
NCC Sundry Debtors,Operational Responses,01/03/2020,9091395,Contract Cleaning,14.15 
NCC Sundry Debtors,Operational Responses,01/03/2020,9091395,Contract Cleaning,10.61 
NCC Sundry Debtors,Operational Responses,01/03/2020,9091395,Contract Cleaning,10.61 
NCC Sundry Debtors,Operational Responses,01/03/2020,9091395,Contract Cleaning,10.61 
NCC Sundry Debtors,Operational Responses,01/03/2020,9091395,Contract Cleaning,10.61 
NCC Sundry Debtors,Operational Responses,01/03/2020,9091395,Contract Cleaning,10.61 
NCC Sundry Debtors,Operational Responses,01/03/2020,9091395,Contract Cleaning,10.61 
NCC Sundry Debtors,Operational Responses,01/03/2020,9091395,Contract Cleaning,14.15 
NCC Sundry Debtors,Operational Responses,01/03/2020,9091395,Contract Cleaning,10.61 
NCC Sundry Debtors,Operational Responses,01/03/2020,9091395,Contract Cleaning,14.15 
NCC Sundry Debtors,Operational Responses,01/03/2020,9091395,Contract Cleaning,14.15 
NCC Sundry Debtors,Operational Responses,01/03/2020,9091395,Contract Cleaning,10.61 
NCC Sundry Debtors,Operational Responses,01/03/2020,9091395,Contract Cleaning,10.61 
NCC Sundry Debtors,Operational Responses,01/03/2020,9091395,Contract Cleaning,14.15 
NCC Sundry Debtors,Operational Responses,01/03/2020,9091395,Contract Cleaning,14.15 
NCC Sundry Debtors,Operational Responses,01/03/2020,9091395,Contract Cleaning,10.61 
NCC Sundry Debtors,Operational Responses,01/03/2020,9091395,Contract Cleaning,14.15 
NCC Sundry Debtors,Management & Support Services,01/03/2020,9091395,Contract Cleaning,31.83 
NCC Sundry Debtors,Management & Support Services,01/03/2020,9091395,Contract Cleaning,126.60 
NCC Sundry Debtors,Operational Responses,01/07/2020,9090876,Window Cleaning,18.21 
NCC Sundry Debtors,Operational Responses,01/07/2020,9090876,Window Cleaning,10.93 
NCC Sundry Debtors,Operational Responses,01/07/2020,9090876,Window Cleaning,21.86 
NCC Sundry Debtors,Operational Responses,01/07/2020,9090876,Window Cleaning,10.93 
NCC Sundry Debtors,Operational Responses,01/07/2020,9090876,Window Cleaning,10.93 
NCC Sundry Debtors,Operational Responses,01/07/2020,9090876,Window Cleaning,9.11 
NCC Sundry Debtors,Operational Responses,01/07/2020,9090876,Window Cleaning,10.93 
NCC Sundry Debtors,Operational Responses,01/07/2020,9090876,Window Cleaning,10.93 
NCC Sundry Debtors,Operational Responses,01/07/2020,9090876,Window Cleaning,10.93 
NCC Sundry Debtors,Operational Responses,01/07/2020,9090876,Window Cleaning,14.57 
NCC Sundry Debtors,Operational Responses,01/07/2020,9090876,Window Cleaning,9.11 
NCC Sundry Debtors,Operational Responses,01/07/2020,9090876,Window Cleaning,9.11 
NCC Sundry Debtors,Operational Responses,01/07/2020,9090876,Window Cleaning,10.93 
NCC Sundry Debtors,Operational Responses,01/07/2020,9090876,Window Cleaning,10.93 
NCC Sundry Debtors,Operational Responses,01/07/2020,9090876,Window Cleaning,10.93 
NCC Sundry Debtors,Operational Responses,01/07/2020,9090876,Window Cleaning,12.75 
NCC Sundry Debtors,Operational Responses,01/07/2020,9090876,Window Cleaning,16.39 
NCC Sundry Debtors,Operational Responses,01/07/2020,9090876,Window Cleaning,10.93 
NCC Sundry Debtors,Operational Responses,01/07/2020,9090876,Window Cleaning,10.93 
NCC Sundry Debtors,Operational Responses,01/07/2020,9090876,Window Cleaning,10.93 
NCC Sundry Debtors,Operational Responses,01/07/2020,9090876,Window Cleaning,14.57 
NCC Sundry Debtors,Operational Responses,01/07/2020,9090876,Window Cleaning,10.93 
NCC Sundry Debtors,Operational Responses,01/07/2020,9090876,Window Cleaning,36.42 
NCC Sundry Debtors,Management & Support Services,01/07/2020,9090876,Window Cleaning,12.75 
NCC Sundry Debtors,Management & Support Services,01/07/2020,9090876,Window Cleaning,47.35 
NCC Sundry Debtors,Operational Responses,01/03/2020,9091297,Window Cleaning,17.68 
NCC Sundry Debtors,Operational Responses,01/03/2020,9091297,Window Cleaning,10.61 
NCC Sundry Debtors,Operational Responses,01/03/2020,9091297,Window Cleaning,21.22 
NCC Sundry Debtors,Operational Responses,01/03/2020,9091297,Window Cleaning,10.61 
NCC Sundry Debtors,Operational Responses,01/03/2020,9091297,Window Cleaning,15.91 
NCC Sundry Debtors,Operational Responses,01/03/2020,9091297,Window Cleaning,8.84 
NCC Sundry Debtors,Operational Responses,01/03/2020,9091297,Window Cleaning,10.61 
NCC Sundry Debtors,Operational Responses,01/03/2020,9091297,Window Cleaning,10.61 
NCC Sundry Debtors,Operational Responses,01/03/2020,9091297,Window Cleaning,10.61 
NCC Sundry Debtors,Operational Responses,01/03/2020,9091297,Window Cleaning,14.15 
NCC Sundry Debtors,Operational Responses,01/03/2020,9091297,Window Cleaning,8.84 
NCC Sundry Debtors,Operational Responses,01/03/2020,9091297,Window Cleaning,8.84 
NCC Sundry Debtors,Operational Responses,01/03/2020,9091297,Window Cleaning,10.61 
NCC Sundry Debtors,Operational Responses,01/03/2020,9091297,Window Cleaning,10.61 
NCC Sundry Debtors,Operational Responses,01/03/2020,9091297,Window Cleaning,10.61 
NCC Sundry Debtors,Operational Responses,01/03/2020,9091297,Window Cleaning,12.38 
NCC Sundry Debtors,Operational Responses,01/03/2020,9091297,Window Cleaning,15.91 
NCC Sundry Debtors,Operational Responses,01/03/2020,9091297,Window Cleaning,10.61 
NCC Sundry Debtors,Operational Responses,01/03/2020,9091297,Window Cleaning,10.61 
NCC Sundry Debtors,Operational Responses,01/03/2020,9091297,Window Cleaning,10.61 
NCC Sundry Debtors,Operational Responses,01/03/2020,9091297,Window Cleaning,14.15 
NCC Sundry Debtors,Operational Responses,01/03/2020,9091297,Window Cleaning,10.61 
NCC Sundry Debtors,Operational Responses,01/03/2020,9091297,Window Cleaning,35.36 
NCC Sundry Debtors,Management & Support Services,01/03/2020,9091297,Window Cleaning,12.38 
NCC Sundry Debtors,Management & Support Services,01/03/2020,9091297,Window Cleaning,45.97 
Amptron Electrical Services,Management & Support Services,30/06/2020,9090869,Purchase of Vehicle Equipment,400.00 
VIA East Midlands Ltd,Management & Support Services,30/06/2020,9091047,Fleet Maintenance - Planned,"19,251.29 "
VIA East Midlands Ltd,Management & Support Services,25/06/2020,9091049,Fleet Maintenance - Planned,"19,502.54 "
VIA East Midlands Ltd,Management & Support Services,19/06/2020,9091050,Fleet Maintenance - Planned,"10,166.51 "
VIA East Midlands Ltd,Management & Support Services,09/06/2020,9091051,Fleet Maintenance - Planned,"8,560.79 "
VIA East Midlands Ltd,Management & Support Services,16/03/2020,9091052,Fleet Maintenance - Planned,"53,437.67 "
VIA East Midlands Ltd,Management & Support Services,09/06/2020,9091053,Fleet Maintenance - Planned,"1,480.27 "
VIA East Midlands Ltd,Management & Support Services,29/05/2020,9091054,Fleet Maintenance - Planned,"3,782.03 "
VIA East Midlands Ltd,Management & Support Services,29/05/2020,9091055,Fleet Maintenance - Planned,"6,660.65 "
Woodway Engineering Limited,Management & Support Services,09/07/2020,9090995,Fleet Modification,15.00 
Woodway Engineering Limited,Management & Support Services,09/07/2020,9090995,Fleet Modification,"3,267.90 "
Woodway Engineering Limited,Management & Support Services,10/07/2020,9091112,Fleet Modification,"3,356.72 "
Woodway Engineering Limited,Management & Support Services,10/07/2020,9091202,Fleet Modification,"1,099.30 "
Keltruck Limited,Management & Support Services,23/03/2020,9090863,Vehicle Maintenance Outsourced,534.60 
Keltruck Limited,Management & Support Services,29/06/2020,9090888,Vehicle Maintenance Outsourced,"2,294.85 "
Keltruck Limited,Management & Support Services,03/03/2020,9090917,Vehicle Maintenance Outsourced,980.00 
Keltruck Limited,Management & Support Services,06/07/2020,9090918,Vehicle Maintenance Outsourced,654.15 
Keltruck Limited,Management & Support Services,09/07/2020,9090943,Vehicle Maintenance Outsourced,275.11 
Keltruck Limited,Management & Support Services,24/06/2020,9090973,Vehicle Maintenance Outsourced,"2,063.87 "
Keltruck Limited,Management & Support Services,25/06/2020,9090977,Vehicle Maintenance Outsourced,"4,513.80 "
Angloco Limited,Management & Support Services,28/03/2020,9091136,Vehicle Maintenance Outsourced,"3,030.31 "
VIA East Midlands Ltd,Management & Support Services,30/06/2020,9091048,Fleet Maintenance - Unplanned,"9,488.99 "
VIA East Midlands Ltd,Management & Support Services,25/06/2020,9091087,Fleet Maintenance - Unplanned,"7,758.37 "
VIA East Midlands Ltd,Management & Support Services,16/03/2020,9091101,Fleet Maintenance - Unplanned,"19,351.08 "
CERTAS,Operational Responses,14/05/2020,9090854,Fuel - Vehicle,"6,091.94 "
CERTAS,Operational Responses,07/07/2020,9090971,Fuel - Vehicle,"7,177.60 "
CERTAS,Operational Responses,08/07/2020,9090972,Fuel - Vehicle,897.20 
CERTAS,Operational Responses,28/05/2020,9090987,Fuel - Vehicle,"7,570.50 "
CERTAS,Operational Responses,14/07/2020,9091014,Fuel - Vehicle,630.91 
CERTAS,Operational Responses,29/06/2020,9091138,Fuel - Vehicle,"1,961.06 "
CERTAS,Operational Responses,22/07/2020,9091397,Fuel - Vehicle,540.54 
The Lodge Tyre Co. Limited,Management & Support Services,30/04/2020,9090881,Tyres,494.05 
The Lodge Tyre Co. Limited,Management & Support Services,30/05/2020,9090882,Tyres,"2,775.41 "
The Lodge Tyre Co. Limited,Management & Support Services,08/07/2020,9091006,Tyres,"3,395.63 "
Drivercheck Ltd,Management & Support Services,30/06/2020,9091056,Motor Tax / Licenses,479.80 
Holmatro Uk Limited,Management & Support Services,03/07/2020,9090868,Operational Equipment Purchase,592.20 
Max Fire Services Ltd,Management & Support Services,26/06/2020,9090900,Operational Equipment Purchase,"8,893.47 "
Northern Diver (International) Ltd,Operational Responses,29/06/2020,9090946,Operational Equipment Purchase,8.50 
Northern Diver (International) Ltd,Operational Responses,29/06/2020,9090946,Operational Equipment Purchase,345.00 
Holmatro Uk Limited,Management & Support Services,09/07/2020,9090955,Operational Equipment Purchase,755.90 
Holmatro Uk Limited,Management & Support Services,09/07/2020,9090956,Operational Equipment Purchase,"1,235.90 "
Holmatro Uk Limited,Management & Support Services,09/07/2020,9090957,Operational Equipment Purchase,550.80 
Holmatro Uk Limited,Management & Support Services,09/07/2020,9090958,Operational Equipment Purchase,"1,866.50 "
Respirex International,Management & Support Services,03/07/2020,9091004,Operational Equipment Purchase,"1,482.00 "
Holmatro Uk Limited,Management & Support Services,21/07/2020,9091159,Operational Equipment Purchase,"2,257.90 "
Holmatro Uk Limited,Management & Support Services,21/07/2020,9091160,Operational Equipment Purchase,"1,730.80 "
Holmatro Uk Limited,Management & Support Services,21/07/2020,9091161,Operational Equipment Purchase,"1,479.80 "
Holmatro Uk Limited,Management & Support Services,21/07/2020,9091162,Operational Equipment Purchase,"1,256.40 "
Northern Diver (International) Ltd,Management & Support Services,21/07/2020,9091182,Operational Equipment Purchase,15.00 
Northern Diver (International) Ltd,Management & Support Services,21/07/2020,9091182,Operational Equipment Purchase,368.00 
Holmatro Uk Limited,Management & Support Services,21/07/2020,9091218,Operational Equipment Purchase,246.40 
Holmatro Uk Limited,Management & Support Services,21/07/2020,9091219,Operational Equipment Purchase,209.00 
Holmatro Uk Limited,Management & Support Services,22/07/2020,9091222,Operational Equipment Purchase,"5,480.80 "
Holmatro Uk Limited,Management & Support Services,22/07/2020,9091223,Operational Equipment Purchase,"1,253.20 "
Holmatro Uk Limited,Management & Support Services,22/07/2020,9091224,Operational Equipment Purchase,"3,674.60 "
Holmatro Uk Limited,Management & Support Services,22/07/2020,9091225,Operational Equipment Purchase,673.10 
Holmatro Uk Limited,Management & Support Services,22/07/2020,9091226,Operational Equipment Purchase,"1,883.10 "
Holmatro Uk Limited,Management & Support Services,22/07/2020,9091227,Operational Equipment Purchase,601.20 
Holmatro Uk Limited,Management & Support Services,22/07/2020,9091228,Operational Equipment Purchase,596.40 
Holmatro Uk Limited,Management & Support Services,23/07/2020,9091298,Operational Equipment Purchase,611.70 
Holmatro Uk Limited,Management & Support Services,23/07/2020,9091299,Operational Equipment Purchase,"1,678.40 "
Holmatro Uk Limited,Management & Support Services,23/07/2020,9091300,Operational Equipment Purchase,"1,645.40 "
Holmatro Uk Limited,Management & Support Services,23/07/2020,9091301,Operational Equipment Purchase,"1,092.30 "
Radiocoms Systems Ltd,Management & Support Services,20/07/2020,9091370,Operational Equipment Purchase,15.00 
Radiocoms Systems Ltd,Management & Support Services,20/07/2020,9091370,Operational Equipment Purchase,213.62 
Radiocoms Systems Ltd,Management & Support Services,03/07/2020,9091194,Operational Equipment (Medical),"1,523.04 "
Flogas Britian Limited,Management & Support Services,15/05/2020,9090985,Oxygen and Other Gases,977.68 
Flogas Britian Limited,Management & Support Services,15/06/2020,9091027,Oxygen and Other Gases,977.68 
Flogas Britian Limited,Management & Support Services,15/07/2020,9091073,Oxygen and Other Gases,977.68 
Kingsfield Computer Products Ltd,Management & Support Services,03/07/2020,9090913,Computer Hardware/ Software,489.00 
CDW UK,Management & Support Services,09/07/2020,9091057,Computer Hardware/ Software,468.56 
CDW UK,Management & Support Services,30/06/2020,9091077,Computer Hardware/ Software,"1,562.40 "
Bytes Software Services Ltd,Management & Support Services,06/07/2020,9091286,Computer Hardware/ Software,"6,398.56 "
Texthelp Limited,Management & Support Services,01/07/2020,9090905,Computer Software Maintenance Contracts,"3,726.00 "
GTT (Interoute/Easynet),Management & Support Services,25/06/2020,9090949,Computer Software Maintenance Contracts,"10,208.58 "
Zoho Corporation Private Limited,Management & Support Services,25/06/2020,9090982,Computer Software Maintenance Contracts,"7,882.00 "
Risual Limited,Management & Support Services,14/07/2020,9090986,Computer Software Maintenance Contracts,"2,550.00 "
Bytes Software Services Ltd,Management & Support Services,24/06/2020,9090996,Computer Software Maintenance Contracts,936.78 
Bytes Software Services Ltd,Management & Support Services,29/05/2020,9090997,Computer Software Maintenance Contracts,905.36 
Risual Limited,Management & Support Services,15/07/2020,9091023,Computer Software Maintenance Contracts,"9,000.00 "
Satisnet Limited,Management & Support Services,10/07/2020,9091091,Computer Software Maintenance Contracts,"6,975.00 "
Midland HR,Management & Support Services,26/06/2020,9091157,Computer Software Maintenance Contracts,"8,882.50 "
BT PLC,Management & Support Services,19/05/2020,9091176,Computer Software Maintenance Contracts,"1,140.10 "
BT PLC,Management & Support Services,12/06/2020,9091177,Computer Software Maintenance Contracts,"1,140.10 "
BT PLC,Management & Support Services,14/07/2020,9091178,Computer Software Maintenance Contracts,"1,140.10 "
squircle IT,Management & Support Services,26/07/2020,9091382,Computer Software Maintenance Contracts,"24,576.00 "
Bytes Software Services Ltd,Management & Support Services,21/07/2020,9091389,Computer Software Maintenance Contracts,429.10 
GTT (Interoute/Easynet),Management & Support Services,25/07/2020,9091394,Computer Software Maintenance Contracts,"10,241.46 "
Zoho Corporation Private Limited,Management & Support Services,25/06/2020,9090980,Computer Software Maintenance Contracts,"-14,381.00 "
Civica Uk Limited,Management & Support Services,03/07/2020,9090866,Non-Contracted Services - ICT,"4,408.00 "
Amptron Electrical Services,Management & Support Services,30/06/2020,9090914,Non-Contracted Services - ICT,"1,541.40 "
Risual Limited,Management & Support Services,22/05/2020,9090941,Non-Contracted Services - ICT,840.00 
Risual Limited,Management & Support Services,12/06/2020,9090945,Non-Contracted Services - ICT,840.00 
Risual Limited,Management & Support Services,30/06/2020,9091078,Non-Contracted Services - ICT,-840.00 
Home Office,Management & Support Services,27/05/2020,9090873,FireLink Contract Charges,"46,895.90 "
Daisy Corporate Services Trading Limited,Management & Support Services,01/07/2020,9090858,Phones - Landline,"1,238.01 "
Risual Limited,Management & Support Services,17/07/2020,9091022,Phones - Landline,793.95 
Risual Limited,Management & Support Services,17/07/2020,9091022,Phones - Landline,"1,144.40 "
BT PLC,Management & Support Services,07/06/2020,9091155,Phones - Landline,"1,329.26 "
Waterfront Manufacturing Limited,Management & Support Services,30/06/2020,9090852,Clothing and Uniform,10.75 
Waterfront Manufacturing Limited,Management & Support Services,30/06/2020,9090852,Clothing and Uniform,"1,757.24 "
New Balance Athletic Shoes (UK) Limited,Management & Support Services,24/01/2020,9090983,Clothing and Uniform,343.80 
Bristol Uniforms Limited,Management & Support Services,26/06/2020,9090894,Protective Clothing,"1,008.30 "
Pulp Friction Smoothie Bar CIC,Management & Support Services,28/06/2020,9090893,Catering/Food & Beverages,511.20 
Pulp Friction Smoothie Bar CIC,Management & Support Services,07/07/2020,9091111,Catering/Food & Beverages,432.00 
Pulp Friction Smoothie Bar CIC,Management & Support Services,22/07/2020,9091187,Catering/Food & Beverages,360.00 
Pulp Friction Smoothie Bar CIC,Management & Support Services,22/07/2020,9091188,Catering/Food & Beverages,201.25 
Pulp Friction Smoothie Bar CIC,Management & Support Services,22/07/2020,9091188,Catering/Food & Beverages,381.60 
Pulp Friction Smoothie Bar CIC,Management & Support Services,22/07/2020,9091189,Catering/Food & Beverages,252.00 
Irongate Group Ltd,Operational Responses,15/06/2020,9090975,Printing,469.98 
Irongate Group Ltd,Operational Responses,16/07/2020,9091233,Printing,469.98 
Quadient UK Limited,Management & Support Services,14/04/2020,9091283,Postage,500.00 
Quadient UK Limited,Management & Support Services,14/07/2020,9091293,Postage,500.00 
Royal Mail (Bacs),Management & Support Services,09/07/2020,9091302,Postage,208.33 
Southcombe Bros Ltd,Management & Support Services,22/06/2020,9090837,Carriage and Packaging,12.85 
Northern Diver (International) Ltd,Management & Support Services,30/06/2020,9090840,Carriage and Packaging,8.50 
Global MSI PLC,Management & Support Services,30/06/2020,9090919,Carriage and Packaging,65.00 
Metcalf Leenside Limited,Management & Support Services,30/06/2020,9090920,Carriage and Packaging,15.00 
Metcalf Leenside Limited,Management & Support Services,30/06/2020,9090921,Carriage and Packaging,15.00 
Collins Nets Ltd,Management & Support Services,15/05/2020,9090960,Carriage and Packaging,12.00 
Collins Nets Ltd,Management & Support Services,01/07/2020,9090961,Carriage and Packaging,10.00 
Northern Diver (International) Ltd,Management & Support Services,01/07/2020,9090963,Carriage and Packaging,8.50 
Apollo Signs & Engraving,Management & Support Services,13/07/2020,9091010,Carriage and Packaging,320.00 
Northern Diver (International) Ltd,Management & Support Services,14/07/2020,9091211,Carriage and Packaging,8.50 
L W Vass Limited,Management & Support Services,23/03/2020,9091282,Carriage and Packaging,12.00 
Global MSI PLC,Management & Support Services,24/07/2020,9091376,Carriage and Packaging,65.00 
CFM Services,Management & Support Services,27/07/2020,9091408,Carriage and Packaging,8.50 
Nottinghamshire Relate,Management & Support Services,30/03/2020,9090967,Medical Fees,250.00 
Healthwork,Management & Support Services,12/06/2020,9090947,Occupational Health Costs,960.00 
Healthwork,Management & Support Services,13/03/2020,9091113,Occupational Health Costs,960.00 
East Midlands Councils,Management & Support Services,24/06/2020,9091377,Consultancy Fees - Non Estates Related,"3,590.00 "
HR Solutions Hub Limited,Management & Support Services,27/07/2020,9091381,Consultancy Fees - Non Estates Related,"9,700.00 "
NorthgateArinso UK Limited,Management & Support Services,19/07/2020,9091011,Disclosure Checks,134.24 
NorthgateArinso UK Limited,Management & Support Services,19/07/2020,9091011,Disclosure Checks,235.00 
HR Solutions Hub Limited,Management & Support Services,27/07/2020,9091381,Translation and Interpretation Services,"1,200.00 "
Opinion Research Services Ltd,Prevention & Education,18/03/2020,9091046,Consultation Costs,"8,065.00 "
Specialised Canvas Group,Management & Support Services,16/03/2020,9090959,Trade Union Representatives,29.00 
United Kingdom Association of Fire Investigators (UKAFI),Operational Responses,06/05/2020,9090984,Subscriptions,59.00 
United Kingdom Association of Fire Investigators (UKAFI),Operational Responses,06/05/2020,9090984,Subscriptions,59.00 
United Kingdom Association of Fire Investigators (UKAFI),"Statutory Inspection, Certification & Enforcement",06/05/2020,9090984,Subscriptions,59.00 
Association Of Local Government Communications,Management & Support Services,30/04/2020,9091005,Subscriptions,250.00 
The Purple Co. (UK) Limited,Operational Responses,03/07/2020,9090870,Marketing and Publicity,"1,785.60 "
Debora Link Creative,Management & Support Services,30/06/2020,9090912,Marketing and Publicity,468.00 
Nottinghamshire Fire Safety Limited,Operational Responses,30/06/2020,9090910,Fire Precaution Maintenance,-90.64 
Nottinghamshire Fire Safety Limited,Operational Responses,30/06/2020,9090910,Fire Precaution Maintenance,-66.34 
Nottinghamshire Fire Safety Limited,Operational Responses,30/06/2020,9090910,Fire Precaution Maintenance,-31.34 
Nottinghamshire Fire Safety Limited,Operational Responses,30/06/2020,9090910,Fire Precaution Maintenance,-12.42 
Nottinghamshire Fire Safety Limited,Operational Responses,30/06/2020,9090910,Fire Precaution Maintenance,-20.56 
Nottinghamshire Fire Safety Limited,Operational Responses,30/06/2020,9090910,Fire Precaution Maintenance,-19.24 
Nottinghamshire Fire Safety Limited,Operational Responses,30/06/2020,9090910,Fire Precaution Maintenance,-51.36 
Nottinghamshire Fire Safety Limited,Operational Responses,30/06/2020,9090910,Fire Precaution Maintenance,-63.00 
Nottinghamshire Fire Safety Limited,Operational Responses,30/06/2020,9090910,Fire Precaution Maintenance,-46.86 
Nottinghamshire Fire Safety Limited,Operational Responses,30/06/2020,9090910,Fire Precaution Maintenance,-54.34 
Nottinghamshire Fire Safety Limited,Operational Responses,30/06/2020,9090910,Fire Precaution Maintenance,-60.94 
Nottinghamshire Fire Safety Limited,Operational Responses,30/06/2020,9090910,Fire Precaution Maintenance,-104.40 
B D Motor Spares,Operational Responses,06/07/2020,9090862,Training/ Teaching Equipment,220.00 
B D Motor Spares,Operational Responses,06/07/2020,9090862,Training/ Teaching Equipment,440.00 
B D Motor Spares,Operational Responses,06/07/2020,9090862,Training/ Teaching Equipment,440.00 
B D Motor Spares,Operational Responses,06/07/2020,9090862,Training/ Teaching Equipment,220.00 
B D Motor Spares,Operational Responses,06/07/2020,9090862,Training/ Teaching Equipment,220.00 
B D Motor Spares,Operational Responses,06/07/2020,9090862,Training/ Teaching Equipment,220.00 
B D Motor Spares,Operational Responses,06/07/2020,9090862,Training/ Teaching Equipment,440.00 
Bits At Micks,Operational Responses,30/04/2020,9090951,Training/ Teaching Equipment,360.00 
Bits At Micks,Operational Responses,30/04/2020,9090951,Training/ Teaching Equipment,360.00 
Bits At Micks,Operational Responses,30/04/2020,9090951,Training/ Teaching Equipment,180.00 
Bits At Micks,Operational Responses,30/04/2020,9090951,Training/ Teaching Equipment,360.00 
Bits At Micks,Operational Responses,30/04/2020,9090951,Training/ Teaching Equipment,360.00 
Bits At Micks,Operational Responses,30/06/2020,9090953,Training/ Teaching Equipment,396.00 
Bits At Micks,Operational Responses,30/06/2020,9090953,Training/ Teaching Equipment,198.00 
Bits At Micks,Operational Responses,30/06/2020,9090953,Training/ Teaching Equipment,396.00 
Bits At Micks,Operational Responses,30/06/2020,9090953,Training/ Teaching Equipment,198.00 
Bits At Micks,Operational Responses,30/06/2020,9090953,Training/ Teaching Equipment,198.00 
Bits At Micks,Operational Responses,30/06/2020,9090953,Training/ Teaching Equipment,396.00 
Bits At Micks,Operational Responses,31/05/2020,9090954,Training/ Teaching Equipment,180.00 
Bits At Micks,Operational Responses,31/05/2020,9090954,Training/ Teaching Equipment,180.00 
Bits At Micks,Operational Responses,31/05/2020,9090954,Training/ Teaching Equipment,180.00 
Qualsafe.Com,Management & Support Services,21/07/2020,9091158,Training/ Teaching Equipment,485.40 
The Stationery Office Ltd,Management & Support Services,03/06/2020,9091216,Training/ Teaching Equipment,500.00 
Medimark Scientific Ltd,Management & Support Services,03/07/2020,9091204,Stock Adjustments,"-1,902.30 "
Royal British Legion,Management & Support Services,22/07/2020,9091190,Gifts and Donations,462.50 
Link Treasury Services Limited,Management & Support Services,16/07/2020,9091021,Financial Services,485.00 
Browne Jacobson LLP,Management & Support Services,29/04/2020,9090950,Legal Services,437.50 
Browne Jacobson LLP,Management & Support Services,05/03/2020,9091120,Legal Services,"2,207.50 "
Browne Jacobson LLP,Management & Support Services,29/06/2020,9091121,Legal Services,"4,971.50 "
Browne Jacobson LLP,Management & Support Services,25/04/2020,9091141,Legal Services,128.00 
Browne Jacobson LLP,Management & Support Services,25/04/2020,9091141,Legal Services,192.00 
Browne Jacobson LLP,Management & Support Services,25/04/2020,9091141,Legal Services,688.00 
Browne Jacobson LLP,Management & Support Services,25/04/2020,9091141,Legal Services,"1,800.00 "
NCC Pension Fund,Management & Support Services,17/06/2020,9091367,Treasury Services,630.00 
Goliath Footwear Ltd,Management & Support Services,22/06/2020,9090829,Stock   ,223.65 
Southcombe Bros Ltd,Management & Support Services,22/06/2020,9090837,Stock   ,"2,676.00 "
Northern Diver (International) Ltd,Management & Support Services,30/06/2020,9090840,Stock   ,330.00 
Bristol Uniforms Limited,Management & Support Services,26/06/2020,9090896,Stock   ,623.64 
Bristol Uniforms Limited,Management & Support Services,26/06/2020,9090897,Stock   ,"5,048.94 "
Bristol Uniforms Limited,Management & Support Services,26/06/2020,9090898,Stock   ,"1,650.88 "
Bristol Uniforms Limited,Management & Support Services,01/07/2020,9090904,Stock   ,"1,130.54 "
Irongate Group Ltd,Management & Support Services,15/06/2020,9090906,Stock   ,948.96 
Global MSI PLC,Management & Support Services,30/06/2020,9090919,Stock   ,143.94 
Metcalf Leenside Limited,Management & Support Services,30/06/2020,9090920,Stock   ,210.00 
Metcalf Leenside Limited,Management & Support Services,30/06/2020,9090921,Stock   ,14.40 
Metcalf Leenside Limited,Management & Support Services,30/06/2020,9090921,Stock   ,184.00 
Joseph Gleave and Son Limited -Joseph Gleave and Son (Holdings) Limited,Management & Support Services,16/06/2020,9090927,Stock   ,399.52 
Joseph Gleave and Son Limited -Joseph Gleave and Son (Holdings) Limited,Management & Support Services,30/06/2020,9090932,Stock   ,615.45 
Specialised Canvas Group,Management & Support Services,16/03/2020,9090959,Stock   ,421.10 
Collins Nets Ltd,Management & Support Services,15/05/2020,9090960,Stock   ,509.00 
Collins Nets Ltd,Management & Support Services,01/07/2020,9090961,Stock   ,369.00 
Northern Diver (International) Ltd,Management & Support Services,01/07/2020,9090963,Stock   ,499.50 
New Balance Athletic Shoes (UK) Limited,Management & Support Services,24/01/2020,9090983,Stock   ,"1,948.20 "
Bristol Uniforms Limited,Management & Support Services,26/06/2020,9090989,Stock   ,"27,749.04 "
Medimark Scientific Ltd,Management & Support Services,14/07/2020,9090992,Stock   ,"4,081.00 "
Draeger Safety UK Limited,Management & Support Services,13/07/2020,9090994,Stock   ,352.80 
Draeger Safety UK Limited,Management & Support Services,07/07/2020,9090999,Stock   ,882.00 
Dot Promotional Clothing,Management & Support Services,24/06/2020,9091009,Stock   ,704.10 
Joseph Gleave and Son Limited -Joseph Gleave and Son (Holdings) Limited,Management & Support Services,19/05/2020,9091029,Stock   ,863.04 
Joseph Gleave and Son Limited -Joseph Gleave and Son (Holdings) Limited,Management & Support Services,04/05/2020,9091038,Stock   ,"2,228.40 "
Bristol Uniforms Limited,Management & Support Services,30/06/2020,9091064,Stock   ,"2,027.60 "
Joseph Gleave and Son Limited -Joseph Gleave and Son (Holdings) Limited,Management & Support Services,06/07/2020,9091103,Stock   ,263.22 
Joseph Gleave and Son Limited -Joseph Gleave and Son (Holdings) Limited,Management & Support Services,14/07/2020,9091125,Stock   ,863.04 
Joseph Gleave and Son Limited -Joseph Gleave and Son (Holdings) Limited,Management & Support Services,14/07/2020,9091126,Stock   ,236.00 
Centralised Services Values Ltd,Management & Support Services,07/07/2020,9091170,Stock   ,420.00 
Scott Health & Safety Limited,Management & Support Services,09/07/2020,9091173,Stock   ,491.30 
Kays Medical Ltd,Management & Support Services,17/07/2020,9091174,Stock   ,753.23 
Radiocoms Systems Ltd,Management & Support Services,09/07/2020,9091193,Stock   ,525.00 
Irongate Group Ltd,Management & Support Services,21/05/2020,9091207,Stock   ,336.09 
Irongate Group Ltd,Management & Support Services,21/05/2020,9091209,Stock   ,"2,372.40 "
Northern Diver (International) Ltd,Management & Support Services,14/07/2020,9091211,Stock   ,300.00 
Joseph Gleave and Son Limited -Joseph Gleave and Son (Holdings) Limited,Management & Support Services,20/07/2020,9091212,Stock   ,"1,427.40 "
Medimark Scientific Ltd,Management & Support Services,30/06/2020,9091213,Stock   ,"2,282.76 "
Bristol Uniforms Limited,Management & Support Services,06/07/2020,9091274,Stock   ,314.38 
Draeger Safety UK Limited,Management & Support Services,08/07/2020,9091275,Stock   ,882.00 
Bristol Uniforms Limited,Management & Support Services,22/07/2020,9091277,Stock   ,511.06 
L W Vass Limited,Management & Support Services,23/03/2020,9091282,Stock   ,294.00 
Dot Promotional Clothing,Management & Support Services,23/07/2020,9091373,Stock   ,754.00 
Global MSI PLC,Management & Support Services,24/07/2020,9091376,Stock   ,420.00 
CFM Services,Management & Support Services,27/07/2020,9091408,Stock   ,207.00 
Johnsons Business Moves,Operational Responses,10/07/2020,9090981,Building Works,450.00 
Turner and Townsend Project Management,Management & Support Services,24/07/2020,9091392,Professional Fees - Architects,"11,498.05 "
Browne Jacobson LLP,Management & Support Services,25/04/2020,9091141,Professional Fees - Legal,64.00 
Weightmans LLP Client Account,Management & Support Services,21/07/2020,9091143,Professional Fees - Legal,"526,856.00 "
Systel,Management & Support Services,12/05/2020,9091062,Hardware,"1,491.08 "
Ergo Computing UK,Management & Support Services,27/07/2020,9091390,Hardware,"14,192.20 "
Zoho Corporation Private Limited,Management & Support Services,30/06/2020,9090851,Software and Licences,"6,742.00 "
Risual Limited,Management & Support Services,29/06/2020,9091069,Software and Licences,"1,928.52 "
Bytes Software Services Ltd,Management & Support Services,14/07/2020,9091272,Software and Licences,"2,882.00 "
Performance Monitoring Systems Ltd,Management & Support Services,02/07/2020,9090838,Consultancy and Services,"2,500.00 "
Risual Limited,Management & Support Services,03/07/2020,9090942,Consultancy and Services,"2,550.00 "
Risual Limited,Management & Support Services,10/07/2020,9090979,Consultancy and Services,"2,550.00 "
Risual Limited,Management & Support Services,26/06/2020,9091070,Consultancy and Services,850.00 
Risual Limited,Management & Support Services,30/06/2020,9091076,Consultancy and Services,850.00 
Aligned Assets Limited,Management & Support Services,29/06/2020,9091085,Consultancy and Services,850.00 
Risual Limited,Management & Support Services,19/06/2020,9091094,Consultancy and Services,"2,550.00 "
Risual Limited,Management & Support Services,24/07/2020,9091400,Consultancy and Services,"1,680.00 "
